{"text_format":"3","workbook":"xlsx","n_sheets":2,"sheets":["Budget","dropdown"],"not_rendered":{"images":1,"defined_names":3},"read":"whole","date_system":"1900"}

{"sheet":"Budget","index":0,"n_rows":75,"n_cols":9,"rows_kept":75,"merged":[[6,0,6,7],[11,0,11,7],[12,0,12,7],[14,0,14,6],[15,0,15,6],[44,0,45,0]]}
[]
[]
[]
[]
["Neues Vermögen: Schweizer Richtlinien"]
[]
["Die Berechnung des vermögensbildenden Einkommens basiert auf dem betreibungs-"]
["rechtlichen Existenzminimum. Die Ermessensräume der Betreibungsämter und Gerichte"]
["sind gross. Siehe die Stichwörter  «Einkommenspfändung» und «Neues Vermögen»: "]
["https://www.schuldeninfo.ch/files/_documents/stichwoerter/einkommenspfaendung.pdf"]
["www.schuldeninfo.ch/files/_documents/stichwoerter/neues_vermoegen.pdf"]
["Wir haben die Tabelle nach bestem Wissen und Gewissen zusammengestellt, "]
["übernehmen aber keine Garantie für die Richtigkeit der Ergebnisse. "]
[]
["1. Betreibungsrechtliches Existenzminimum nach den Schweizer Richtlinien"]
["[NAME]"]
["EINNAHMEN",null,null,"Mann ","Frau",null,"Total"]
["Nettoeinkommen inkl. Provisionen (Durchschnitt)",{"$nulls":5},{"$f":"ROUND(SUM(D18:E18)/5,2)*5","v":0}]
["Hereinkommende Erwachsenenalimente (+)*",{"$nulls":5},{"$f":"ROUND(SUM(D19:E19)/5,2)*5","v":0}]
["Andere Einnahmen",{"$nulls":5},{"$f":"ROUND(SUM(D20:E20)/5,2)*5","v":0}]
[" - Abgehende Alimentenzahlungen (-)**",{"$nulls":5},{"$f":"ROUND(SUM(D21:E21)/5,2)*5","v":0}]
[" - Besuchsrecht von Kindern(-)**",{"$nulls":5},{"$f":"ROUND(SUM(D22:E22)/5,2)*5","v":0}]
["Total Einkommen",null,null,{"$f":"SUM(D18:D22)","v":0},{"$f":"SUM(E18:E22)","v":0},null,{"$f":"SUM(G18:G22)","v":0}]
[]
["Einkommen in %",null,null,{"$f":"D23/$G$23","v":{"$error":"#DIV/0!"}},{"$f":"E23/$G$23","v":{"$error":"#DIV/0!"}},null,{"$f":"G23/$G$23","v":{"$error":"#DIV/0!"}}]
[]
["AUSGABEN",null,null,"Mann ","Frau",null,"Total"]
["Monatlicher Grundbetrag Erwachsene"]
["- Alleinstehend",{"$nulls":5},{"$f":"IF(B29>0,1200)+0","v":0}]
["- Alleinerziehend",{"$nulls":5},{"$f":"IF(B30>0,1350)+0","v":0}]
["- Ehepaar / eingetragene"]
["  Partnerschaft / Paar mit ",null,null,"Zutreffendes"]
["  Kindern",null,null,"ankreuzen",null,null,{"$f":"IF(B33>0,1700)+0","v":0}]
["- kinderlose, kostensenkende"]
["  Wohngemeinschaft i.d.R.",{"$nulls":5},{"$f":"IF(B35>0,850)+0","v":0}]
["Zuschlag Kinder",{"$nulls":7},"x"]
["- Anzahl Kinder bis 10 Jahre",{"$nulls":5},{"$f":"B37*400","v":0}]
["- Anzahl Kinder über 10 Jahre",{"$nulls":5},{"$f":"B38*600","v":0}]
["Weitere Faktoren"]
["Mietzins"]
["Heiz- und Nebenkosten"]
["Krankenkassenprämien"]
["Beiträge an Berufsverbände",{"$nulls":5},{"$f":"E43+D43","v":0}]
["Auswärtige Verpflegung",{"$nulls":5},{"$f":"E44+D44","v":0}]
["Erhöhter Nahrungsbedarf bei \nSchwerarbeit, Schicht- und Nachtarbeit"]
[{"$nulls":6},{"$f":"E46+D46","v":0}]
["Überdurchschnittlicher Kleiderverbrauch",{"$nulls":5},{"$f":"E47+D47","v":0}]
["Fahrten zum Arbeitsplatz",{"$nulls":5},{"$f":"E48+D48","v":0}]
["Kinderbetreuung"]
["Schulung der Kinder"]
["Jahresfranchise Krankenkasse"]
["Gesundheitskosten"]
["Weitere Faktoren"]
["Total betreibungsrechtliches Existenzminimum",{"$nulls":5},{"$f":"SUM(G28:G52)","v":0}]
[]
["2.  Zuschläge zur Berechnung des vermögensbildenden Einkommens"]
["Zuschlag «Standesgemässes Leben»              (Bei Bedarf abändern)",null,null,{"v":1,"d":"100%"},null,null,{"$f":"D57*SUM(G29:G38)","v":0}]
["Pauschale für Telekommunikation (i.d.R. CHF 100)"]
["Laufende Steuern"]
["Weitere Faktoren unter dem Stichwort «Standesgemässes Leben»"]
[]
["Limite zum vermögensbildenden Einkommen",{"$nulls":5},{"$f":"SUM(G54:G61)","v":0}]
[]
[{"$nulls":3},"Mann","Frau"]
["Anrechenbares Einkommen",null,null,{"$f":"D23","v":0},{"$f":"E23","v":0}]
["Anteil am erweiterten familiären Existenzminimum",null,null,{"$f":"$G$62*D25","v":{"$error":"#DIV/0!"}},{"$f":"$G$62*E25","v":{"$error":"#DIV/0!"}}]
["Vermögensbildend pro Monat",null,null,{"$f":"D65-D66","v":{"$error":"#DIV/0!"}},{"$f":"E65-E66","v":{"$error":"#DIV/0!"}}]
[]
[]
["* Hereinkommende Kinderalimente werden nicht in diese Tabelle integriert."]
["Sie sind für das Kind bestimmt. Der «Zuschlag Kinder», Krankenkasse, "]
["Schulkosten usw. werden grundsätzlich aus dem Aliment bezahlt. "]
["Ein allfälliger Überschuss ist für das Kind bestimmt."]
[]
["** Es sind Minusbeträge zu erfassen."]

{"sheet":"dropdown","index":1,"n_rows":5,"n_cols":1,"rows_kept":5,"hidden":true}
["Bitte Haushaltsform wählen"]
["Grundbetrag für Alleinstehende"]
["Grundbetrag für Alleinerziehende"]
["Grundbetrag für Ehepaare; Paare mit Kindern; eingetragene Partnerschaften"]
["Grundbetrag für kinderlose kostendeckende Wohn- und Lebensgemeinschaften"]